bitfinex-derivatives/quotes_BTCF0:USTF0_20260221
["timestamp","ask_amount","ask_price","bid_price","bid_amount"]
[1771688669479,0.014571,68646.0,68639.0,0.014573]
[1771688669677,0.014571,68646.0,68638.0,0.00014846]
[1771688669678,0.014572,68644.0,68638.0,0.00014846]
[1771688669879,0.014572,68644.0,68635.0,0.014574]
[1771688669880,0.00012552,68643.0,68636.0,0.014573]
[1771688670081,0.01469752,68643.0,68636.0,0.014573]
[1771688670591,0.014573,68640.0,68633.0,0.014574]
[1771688670884,0.014572,68642.0,68631.0,0.01530253]
[1771688671084,0.014573,68641.0,68635.0,0.014574]
[1771688671590,0.014573,68641.0,68639.0,0.001]
[1771688671884,0.014573,68641.0,68635.0,0.014574]
[1771688672184,0.01457,68651.0,68631.0,0.01530253]
[1771688672185,0.014566,68670.0,68642.0,0.20453128]
[1771688672388,0.014569,68658.0,68651.0,0.01457]
[1771688672786,0.014569,68657.0,68651.0,0.01457]
[1771688673183,0.22077032,68671.0,68651.0,0.01457]
[1771688673184,0.014567,68667.0,68651.0,0.01457]
[1771688673387,0.014567,68666.0,68650.0,0.01457]
[1771688673590,0.014569,68657.0,68650.0,0.01457]
[1771688673788,0.22077032,68671.0,68650.0,0.01457]
[1771688673976,0.014569,68658.0,68650.0,0.02914]
[1771688674181,0.014569,68657.0,68650.0,0.01457]
[1771688674694,0.015569,68658.0,68651.0,0.01457]
[1771688674895,0.001,68658.0,68652.0,0.01457]
[1771688675095,0.014568,68660.0,68653.0,0.01457]
[1771688675289,0.001,68657.0,68653.0,0.01457]
[1771688675485,0.014568,68660.0,68653.0,0.01457]
[1771688675793,0.029138,68659.0,68652.0,0.01457]
[1771688675991,0.014569,68656.0,68649.0,0.014571]
[1771688676494,0.014569,68656.0,68650.0,0.01457]
[1771688677093,0.001,68660.0,68647.0,0.014571]
[1771688677485,0.01457,68654.0,68647.0,0.014571]
[1771688677794,0.01457,68654.0,68648.0,0.014571]
[1771688678491,0.01457,68653.0,68648.0,0.014571]
[1771688678792,0.01457,68653.0,68638.0,0.75586044]
[1771688678793,0.014571,68650.0,68644.0,0.014572]
[1771688679296,0.014571,68651.0,68644.0,0.014572]
[1771688679497,0.014571,68650.0,68644.0,0.014572]
[1771688679686,0.22386276,68658.0,68640.0,0.014573]
[1771688679994,0.01457,68655.0,68649.0,0.014571]
[1771688680492,0.014569,68656.0,68649.0,0.014571]
[1771688680493,0.01457,68654.0,68649.0,0.014571]
[1771688681296,0.01457,68654.0,68648.0,0.014571]
[1771688682196,0.01457,68653.0,68648.0,0.014571]
[1771688683990,0.01457,68653.0,68635.0,0.19920725]
[1771688683991,0.04303036,68701.0,68681.0,0.014564]
[1771688684294,0.014563,68686.0,68680.0,0.014564]
[1771688684489,0.014561,68695.0,68679.0,0.014564]
[1771688684695,0.014563,68686.0,68678.0,0.014565]
[1771688685087,0.014562,68689.0,68681.0,0.014564]
[1771688685293,0.014562,68688.0,68679.0,0.014564]
[1771688685999,0.014562,68688.0,68681.0,0.014564]
[1771688686000,0.014563,68688.0,68681.0,0.014564]
[1771688686493,0.014563,68687.0,68680.0,0.014564]
[1771688687292,0.014562,68688.0,68680.0,0.014564]
[1771688687492,0.014562,68688.0,68681.0,0.014564]
[1771688689099,0.04303036,68701.0,68666.0,0.99929298]
[1771688689100,0.014558,68711.0,68686.0,0.21360311]
[1771688689292,0.06782637,68720.0,68693.0,0.014561]
[1771688689486,0.014559,68703.0,68695.0,0.014561]
[1771688689891,0.014559,68703.0,68693.0,0.014561]
[1771688689892,0.01456,68701.0,68693.0,0.014561]
[1771688690188,0.01456,68700.0,68692.0,0.014562]
[1771688690392,0.05208345,68711.0,68686.0,0.22816611]
[1771688690808,0.06783749,68720.0,68681.0,0.014564]
[1771688690809,0.05169754,68709.0,68681.0,0.014564]
[1771688691187,0.05169754,68709.0,68679.0,0.014564]
[1771688691188,0.014562,68688.0,68680.0,0.014564]
[1771688691693,0.014562,68688.0,68676.0,0.21360311]
[1771688691897,0.014563,68686.0,68678.0,0.014564]
[1771688692200,0.014563,68687.0,68679.0,0.014564]
[1771688692796,0.014563,68687.0,68676.0,0.21360311]
[1771688692797,0.014563,68686.0,68676.0,0.21360311]
[1771688692988,0.014563,68685.0,68673.0,0.014566]
[1771688693194,0.014563,68685.0,68676.0,0.014565]
[1771688693395,0.014563,68685.0,68678.0,0.014565]
[1771688693601,0.014563,68684.0,68677.0,0.014565]
[1771688693993,0.014563,68685.0,68678.0,0.014564]
[1771688694594,0.014564,68683.0,68677.0,0.014565]
[1771688695092,0.05342558,68696.0,68677.0,0.014565]
[1771688695093,0.014562,68692.0,68677.0,0.014565]
[1771688695294,0.014564,68681.0,68675.0,0.014565]
[1771688695692,0.014564,68681.0,68676.0,0.014565]
[1771688695891,0.014564,68681.0,68675.0,0.014565]
[1771688696094,0.014564,68681.0,68673.0,0.014566]
[1771688696293,0.014563,68687.0,68672.0,0.014566]
[1771688696294,0.014565,68678.0,68672.0,0.014566]
[1771688696598,0.014565,68679.0,68671.0,0.014566]
[1771688696801,0.014565,68676.0,68669.0,0.014566]
[1771688696994,0.014565,68676.0,68670.0,0.014566]
[1771688697188,0.014565,68676.0,68668.0,0.22817011]
[1771688697189,0.014565,68675.0,68668.0,0.24273711]
[1771688697394,0.014565,68675.0,68669.0,0.014566]
[1771688697605,0.014565,68675.0,68668.0,0.22817011]
[1771688697606,0.014565,68676.0,68670.0,0.014566]
[1771688698008,0.014565,68677.0,68671.0,0.014566]
[1771688698202,0.014565,68677.0,68670.0,0.014566]
[1771688698403,0.014566,68672.0,68666.0,0.014567]
[1771688698605,0.014566,68672.0,68665.0,0.014567]
[1771688698606,0.014566,68673.0,68667.0,0.014567]
[1771688698902,0.014566,68673.0,68668.0,0.014567]
[1771688699304,0.0500904,68672.0,68657.0,0.01474959]
[1771688699610,0.014568,68662.0,68657.0,0.00018059]
[1771688699818,0.014568,68662.0,68653.0,0.01457]
[1771688699819,0.00016409,68661.0,68653.0,0.01457]
[1771688700002,0.00016409,68661.0,68655.0,0.014569]
[1771688700302,0.014567,68666.0,68656.0,0.014569]
[1771688700507,0.014565,68675.0,68654.0,0.21360311]
[1771688700696,0.014567,68666.0,68660.0,0.014568]
[1771688700898,0.014567,68665.0,68660.0,0.014568]
[1771688701303,0.014567,68667.0,68654.0,0.21360311]
[1771688701507,0.014568,68662.0,68656.0,0.014569]
[1771688701709,0.014568,68661.0,68656.0,0.014569]
[1771688702204,0.014568,68661.0,68654.0,0.01457]
[1771688702398,0.014568,68661.0,68651.0,0.01457]
[1771688702603,0.014568,68665.0,68659.0,0.014569]
[1771688702910,0.014568,68663.0,68658.0,0.014569]
[1771688703801,0.014567,68665.0,68658.0,0.014569]
[1771688704013,0.014567,68666.0,68660.0,0.014568]
[1771688704393,0.014567,68665.0,68660.0,0.014568]
[1771688705619,0.0024289,68679.0,68659.0,0.014569]
[1771688705800,0.00770947,68681.0,68659.0,0.014569]
[1771688706000,0.20538088,68680.0,68659.0,0.014569]
[1771688706211,0.014567,68666.0,68658.0,0.014569]
[1771688706406,0.014568,68662.0,68645.0,0.25727477]
[1771688706599,0.014568,68662.0,68646.0,0.25551563]
[1771688706805,0.014568,68662.0,68655.0,0.014569]
[1771688707005,0.014568,68662.0,68646.0,0.25551563]
[1771688707321,0.014568,68661.0,68655.0,0.014569]
[1771688708012,0.014569,68658.0,68653.0,0.01457]
[1771688708309,0.014569,68659.0,68654.0,0.01457]
[1771688708813,0.014568,68660.0,68655.0,0.014569]
[1771688709209,0.014568,68661.0,68655.0,0.014569]
[1771688709708,0.014568,68660.0,68655.0,0.014569]
[1771688710010,0.014568,68662.0,68656.0,0.014569]
[1771688711012,0.014568,68661.0,68655.0,0.014569]
[1771688711406,0.014568,68661.0,68648.0,0.2578922]
[1771688711616,0.014568,68662.0,68652.0,0.01457]
[1771688711910,0.014568,68662.0,68657.0,0.00955813]
[1771688712802,0.014568,68663.0,68650.0,0.26580112]
[1771688713002,0.029136,68663.0,68657.0,0.014569]
[1771688713204,0.014568,68662.0,68657.0,0.014569]
[1771688713911,0.014566,68669.0,68657.0,0.014569]
[1771688714111,0.029134,68667.0,68661.0,0.014568]
[1771688714414,0.014567,68666.0,68661.0,0.014568]
[1771688715009,0.014567,68667.0,68661.0,0.029136]
[1771688715313,0.014567,68667.0,68662.0,0.014568]
[1771688715712,0.014567,68668.0,68662.0,0.014568]
[1771688715914,0.014567,68669.0,68663.0,0.014568]
[1771688716113,0.014565,68676.0,68661.0,0.27962636]
[1771688716311,0.00058952,68691.0,68661.0,0.27962636]
[1771688716312,0.014566,68674.0,68667.0,0.014567]
[1771688716514,0.014566,68674.0,68668.0,0.014566]
[1771688716712,0.014565,68675.0,68669.0,0.014566]
[1771688717713,0.014565,68675.0,68661.0,0.014568]
[1771688717714,0.014564,68681.0,68674.0,0.014565]
[1771688718014,0.029128,68681.0,68674.0,0.014565]
[1771688718321,0.014563,68685.0,68674.0,0.014565]
[1771688718615,0.014564,68680.0,68674.0,0.014565]
[1771688718816,0.4595539,68686.0,68678.0,0.014564]
[1771688719018,0.014563,68684.0,68677.0,0.014565]
[1771688719218,0.014563,68685.0,68678.0,0.014565]
[1771688719808,0.014564,68683.0,68676.0,0.014565]
[1771688720014,0.014564,68681.0,68673.0,0.014566]
[1771688720205,0.014564,68680.0,68670.0,0.014566]
[1771688720411,0.014565,68675.0,68669.0,0.014566]
[1771688720612,0.014565,68675.0,68667.0,0.014567]
[1771688720613,0.014565,68675.0,68668.0,0.014567]
[1771688720811,0.014565,68675.0,68669.0,0.014566]
[1771688721818,0.014565,68674.0,68668.0,0.014567]
[1771688722014,0.014565,68675.0,68664.0,0.014567]
[1771688722213,0.014565,68674.0,68667.0,0.014567]
[1771688722619,0.014565,68674.0,68668.0,0.014567]
[1771688725819,0.014566,68672.0,68666.0,0.014567]
[1771688726422,0.014566,68673.0,68666.0,0.014567]
[1771688727323,0.19863425,68680.0,68655.0,0.25999075]
[1771688727525,0.014567,68665.0,68658.0,0.014569]
[1771688727722,0.014568,68664.0,68658.0,0.014569]
[1771688727924,0.014567,68665.0,68658.0,0.014569]
[1771688728223,0.014567,68666.0,68659.0,0.014569]
[1771688728426,0.029134,68668.0,68661.0,0.014568]
[1771688728618,0.014567,68666.0,68660.0,0.014568]
[1771688728923,0.014567,68665.0,68658.0,0.014569]
[1771688729516,0.014568,68663.0,68656.0,0.014569]
[1771688729718,0.014568,68662.0,68655.0,0.25999075]
[1771688730127,0.014568,68662.0,68656.0,0.014569]
[1771688730426,0.014568,68663.0,68657.0,0.014569]
[1771688731928,0.014568,68663.0,68656.0,0.014569]
[1771688732130,0.014567,68665.0,68656.0,0.014569]
[1771688732331,0.014568,68663.0,68656.0,0.014569]
[1771688732833,0.014568,68663.0,68655.0,0.27455975]
[1771688733127,0.014569,68659.0,68653.0,0.01457]
[1771688733321,0.014569,68657.0,68649.0,0.014571]
[1771688733521,0.01457,68654.0,68647.0,0.014571]
[1771688733729,0.01457,68654.0,68648.0,0.014571]
[1771688733930,0.014569,68655.0,68649.0,0.014571]
[1771688735731,0.014569,68655.0,68650.0,0.01457]
[1771688737030,0.029139,68655.0,68649.0,0.014571]
[1771688737337,0.01457,68654.0,68648.0,0.014571]
[1771688737631,0.01457,68653.0,68646.0,0.014571]
[1771688737825,0.01457,68652.0,68647.0,0.014571]
[1771688738132,0.17665376,68660.0,68647.0,0.014571]
[1771688738532,0.01457,68654.0,68648.0,0.014571]
[1771688739628,0.01457,68653.0,68647.0,0.014571]
[1771688739834,0.01457,68654.0,68648.0,0.014571]
[1771688740627,0.17665376,68660.0,68645.0,0.27459238]
[1771688740823,0.01457,68653.0,68645.0,0.27459238]
[1771688741030,0.01457,68651.0,68645.0,0.26002038]
[1771688741231,0.01457,68651.0,68645.0,0.27459238]
[1771688741831,0.02914,68651.0,68644.0,0.014572]
[1771688742129,0.014571,68648.0,68642.0,0.014572]
[1771688742334,0.014571,68649.0,68643.0,0.014572]
[1771688742635,0.014571,68648.0,68641.0,0.014572]
[1771688742935,0.014571,68649.0,68642.0,0.014572]
[1771688743129,0.014571,68647.0,68641.0,0.014572]
[1771688743329,0.014572,68645.0,68639.0,0.014573]
[1771688743531,0.014571,68646.0,68639.0,0.014573]
[1771688743731,0.014572,68645.0,68639.0,0.014573]
[1771688743931,0.014571,68647.0,68641.0,0.014572]
[1771688744131,0.014571,68649.0,68642.0,0.014572]
[1771688744535,0.014571,68648.0,68641.0,0.014572]
[1771688745440,0.014571,68647.0,68641.0,0.014572]
[1771688746138,0.014571,68647.0,68639.0,0.014573]
[1771688746330,0.014571,68646.0,68640.0,0.014573]
[1771688746528,0.014572,68645.0,68639.0,0.014573]
[1771688746729,0.014571,68646.0,68640.0,0.014573]
[1771688747030,0.014571,68646.0,68639.0,0.014573]
[1771688747230,0.014571,68650.0,68643.0,0.014572]
[1771688747426,0.17665376,68670.0,68653.0,0.26118533]
[1771688747630,0.17665376,68670.0,68656.0,0.014569]
[1771688747631,0.014568,68663.0,68656.0,0.014569]
[1771688747830,0.014567,68667.0,68656.0,0.014569]
[1771688748034,0.014568,68662.0,68661.0,0.00084]
[1771688748231,0.014568,68662.0,68655.0,0.014569]
[1771688748431,0.014568,68661.0,68655.0,0.014569]
[1771688749236,0.014568,68662.0,68655.0,0.029138]
[1771688749540,0.014568,68662.0,68655.0,0.014569]
[1771688749737,0.014568,68662.0,68636.0,0.014573]
[1771688749738,0.014567,68669.0,68662.0,0.014568]
[1771688749942,0.014567,68668.0,68662.0,0.014568]
[1771688750331,0.014566,68671.0,68662.0,0.014568]
[1771688750838,0.014567,68669.0,68662.0,0.014568]
[1771688751539,0.014567,68668.0,68662.0,0.014568]
[1771688751738,0.014567,68668.0,68660.0,0.27515151]
[1771688751739,0.014566,68673.0,68665.0,0.014567]
[1771688751938,0.014566,68671.0,68665.0,0.014567]
[1771688753034,0.014566,68672.0,68665.0,0.014567]
[1771688754043,0.014566,68672.0,68666.0,0.00088]
[1771688754240,0.014566,68672.0,68665.0,0.014567]
[1771688754444,0.014567,68668.0,68662.0,0.25985936]
[1771688754745,0.014567,68666.0,68660.0,0.014568]
[1771688754941,0.029134,68666.0,68658.0,0.029138]
[1771688755240,0.014567,68666.0,68659.0,0.014569]
[1771688755740,0.014567,68666.0,68654.0,0.27370445]
[1771688755948,0.014567,68666.0,68659.0,0.029136]
[1771688756242,0.014568,68663.0,68656.0,0.014569]
[1771688756546,0.014567,68665.0,68658.0,0.014569]
[1771688756736,0.014567,68665.0,68659.0,0.014569]
[1771688757145,0.014568,68664.0,68657.0,0.014569]
[1771688758348,0.014568,68663.0,68657.0,0.014569]
[1771688758846,0.014567,68665.0,68659.0,0.014569]
[1771688760047,0.014567,68665.0,68659.0,0.015409]
[1771688760246,0.014567,68665.0,68659.0,0.014569]
[1771688761047,0.014567,68665.0,68658.0,0.014569]
[1771688762348,0.014568,68663.0,68656.0,0.014569]
[1771688762747,0.014569,68658.0,68654.0,0.25913445]
[1771688763046,0.014569,68658.0,68652.0,0.01541]
[1771688763247,0.014568,68662.0,68648.0,0.26138383]
[1771688763248,0.014569,68657.0,68648.0,0.26138383]
[1771688763548,0.014569,68657.0,68650.0,0.01457]
[1771688765743,0.014569,68657.0,68651.0,0.01457]
[1771688767045,0.014567,68665.0,68656.0,0.29142114]
[1771688767249,0.014568,68663.0,68656.0,0.27685214]
[1771688767451,0.014567,68666.0,68656.0,0.27685214]
[1771688767757,0.014568,68662.0,68656.0,0.26228314]
[1771688769149,0.014569,68664.0,68656.0,0.26228314]
[1771688769346,0.014571,68656.0,68649.0,0.014572]
[1771688769550,0.014569,68665.0,68637.0,0.23736619]
[1771688769551,0.01457,68661.0,68637.0,0.23736619]
[1771688769848,0.014569,68663.0,68652.0,0.014571]
[1771688770046,0.01457,68658.0,68646.0,0.014573]
[1771688770252,0.014572,68650.0,68643.0,0.014573]
[1771688770454,0.014572,68652.0,68643.0,0.014573]
[1771688770648,0.014572,68652.0,68641.0,0.014574]
[1771688770849,0.014572,68650.0,68641.0,0.014574]
[1771688771352,0.014572,68649.0,68643.0,0.014573]
[1771688771551,0.014572,68649.0,68641.0,0.014574]
[1771688771747,0.014573,68646.0,68640.0,0.014574]
[1771688772056,0.014573,68646.0,68641.0,0.014574]
[1771688772556,0.001,68650.0,68630.0,0.00016819]
[1771688772755,0.014574,68642.0,68633.0,0.014575]
[1771688772957,0.014574,68640.0,68635.0,0.014575]
[1771688773145,0.014574,68640.0,68632.0,0.014576]
[1771688773146,0.014573,68645.0,68632.0,0.014576]
[1771688773352,0.014573,68645.0,68630.0,0.01474419]
[1771688773353,0.014575,68637.0,68631.0,0.01530453]
[1771688773549,0.014573,68644.0,68629.0,0.014576]
[1771688773955,0.014575,68635.0,68628.0,0.014577]
[1771688774260,0.014575,68635.0,68629.0,0.014576]
[1771688774458,0.014575,68634.0,68628.0,0.014577]
[1771688774756,0.014576,68632.0,68627.0,0.014577]
[1771688774958,0.01469967,68633.0,68624.0,0.014577]
[1771688775152,0.00012367,68633.0,68628.0,0.014576]
[1771688775347,0.00012367,68633.0,68626.0,0.014577]
[1771688775547,0.014576,68632.0,68621.0,0.25726759]
[1771688775759,0.00012367,68633.0,68630.0,0.014576]
[1771688775961,0.00012367,68633.0,68621.0,0.24268959]
[1771688776349,0.00112367,68633.0,68619.0,0.13402827]
[1771688776552,0.00112367,68633.0,68613.0,0.32405048]
[1771688776553,0.014576,68631.0,68626.0,0.014577]
[1771688776755,0.014576,68631.0,68625.0,0.014577]
[1771688777059,0.014574,68642.0,68628.0,0.24268959]
[1771688777265,0.014574,68642.0,68636.0,0.014575]
[1771688777644,0.014573,68644.0,68637.0,0.014575]
[1771688777645,0.014574,68643.0,68637.0,0.014575]
[1771688777849,0.014574,68643.0,68636.0,0.014575]
[1771688778051,8.396e-05,68642.0,68637.0,0.00084]
[1771688778252,0.01465796,68642.0,68636.0,0.014575]
[1771688778757,0.014574,68642.0,68636.0,0.014575]
[1771688779153,0.014573,68645.0,68637.0,0.014575]
[1771688779355,0.014573,68644.0,68637.0,0.014575]
[1771688779553,0.001,68642.0,68637.0,0.014575]
[1771688779755,0.014573,68644.0,68637.0,0.014575]
[1771688780261,0.001,68643.0,68637.0,0.014575]
[1771688780963,0.001,68642.0,68637.0,0.014575]
[1771688781465,0.014573,68644.0,68637.0,0.014575]
[1771688782354,0.014573,68644.0,68638.0,0.014575]
[1771688782758,0.014573,68644.0,68637.0,0.014575]
[1771688783066,0.014573,68644.0,68638.0,0.014575]
[1771688783266,0.001,68642.0,68638.0,0.014575]
[1771688783868,0.015573,68644.0,68638.0,0.014575]
[1771688784669,0.001,68642.0,68637.0,0.014575]
[1771688786765,0.015573,68644.0,68637.0,0.014575]
[1771688787064,0.015573,68644.0,68638.0,0.00088]
[1771688787268,0.015573,68644.0,68628.0,0.25726659]
[1771688787269,0.014573,68643.0,68633.0,0.014576]
[1771688787570,0.014574,68641.0,68634.0,0.014575]
[1771688788160,0.014574,68641.0,68635.0,0.014575]
[1771688788469,0.014574,68643.0,68636.0,0.014575]
[1771688788770,0.014572,68650.0,68630.0,0.014576]
[1771688788962,0.014573,68646.0,68638.0,0.014574]
[1771688789462,0.014573,68645.0,68638.0,0.014574]
[1771688789765,0.014573,68644.0,68637.0,0.014575]
[1771688790356,0.001,68641.0,68637.0,0.014575]
[1771688790874,0.015573,68644.0,68637.0,0.014575]
[1771688791374,0.014573,68644.0,68637.0,0.014575]
[1771688791673,0.001,68641.0,68637.0,0.014575]
[1771688792273,0.001,68641.0,68636.0,0.014575]
[1771688793072,0.014574,68641.0,68635.0,0.014575]
[1771688793472,0.20589469,68644.0,68621.0,0.014578]
[1771688793663,0.014577,68627.0,68620.0,0.014578]
[1771688793867,0.014576,68629.0,68613.0,0.25726959]
[1771688794175,0.014576,68630.0,68623.0,0.014578]
[1771688794467,0.014576,68630.0,68621.0,0.014578]
[1771688794468,0.014577,68628.0,68621.0,0.014578]
[1771688795076,0.014576,68630.0,68622.0,0.014578]
[1771688795267,0.014577,68628.0,68621.0,0.014578]
[1771688795467,0.014577,68627.0,68621.0,0.014578]
[1771688795668,0.014576,68630.0,68623.0,0.014578]
[1771688796064,0.014576,68633.0,68626.0,0.014577]
[1771688796269,0.014575,68635.0,68627.0,0.014577]
[1771688796969,0.014574,68643.0,68634.0,0.014575]
[1771688797169,0.014572,68649.0,68630.0,0.014576]
[1771688797170,0.014574,68640.0,68630.0,0.014576]
[1771688797386,0.014574,68640.0,68628.0,0.014577]
[1771688797387,0.07124717,68640.0,68633.0,0.014576]
[1771688797571,0.014574,68639.0,68633.0,0.014576]
[1771688799974,0.015574,68639.0,68633.0,0.014576]
[1771688800178,0.014573,68645.0,68637.0,0.014575]
[1771688800479,0.014571,68653.0,68637.0,0.014575]
[1771688800480,0.22052178,68644.0,68637.0,0.014575]
[1771688800680,0.20594878,68643.0,68637.0,0.014575]
[1771688800984,0.014571,68653.0,68635.0,0.014575]
[1771688800985,0.014574,68642.0,68635.0,0.014575]
[1771688801279,0.001,68639.0,68636.0,0.014575]
[1771688801479,0.014574,68642.0,68636.0,0.014575]
[1771688803278,0.014573,68643.0,68635.0,0.014575]
[1771688803482,0.014572,68650.0,68642.0,0.014573]
[1771688803684,0.20609992,68649.0,68642.0,0.014573]
[1771688803980,0.20609992,68648.0,68642.0,0.014573]
[1771688804291,0.20609992,68647.0,68642.0,0.014573]
[1771688804581,0.20609992,68646.0,68642.0,0.014573]
[1771688804893,0.20609992,68645.0,68642.0,0.014573]
[1771688805076,0.014572,68648.0,68641.0,0.014574]
[1771688805274,0.20609139,68647.0,68641.0,0.014574]
[1771688805473,0.20609139,68646.0,68641.0,0.014574]
[1771688805675,0.13435899,68645.0,68642.0,0.014574]
[1771688805978,0.014572,68649.0,68643.0,0.014573]
[1771688806181,0.014572,68649.0,68642.0,0.014574]
[1771688806782,0.014572,68648.0,68642.0,0.014574]
[1771688807280,0.014572,68649.0,68642.0,0.014574]
[1771688809172,0.014572,68651.0,68642.0,0.014574]
[1771688810084,0.014574,68643.0,68636.0,0.014575]
[1771688810286,0.014573,68645.0,68638.0,0.014574]
[1771688810782,0.014573,68645.0,68639.0,0.014574]
[1771688811178,0.014573,68646.0,68639.0,0.014574]
[1771688811877,0.014573,68645.0,68638.0,0.014574]
[1771688812278,0.029146,68645.0,68638.0,0.014574]
[1771688812486,0.014573,68644.0,68637.0,0.014575]
[1771688813176,0.014573,68644.0,68638.0,0.014575]
[1771688813886,0.014573,68645.0,68638.0,0.014575]
[1771688814080,0.014573,68644.0,68639.0,0.00084]
[1771688814280,0.014573,68644.0,68637.0,0.014575]
[1771688814888,0.014573,68647.0,68635.0,0.014575]
[1771688815084,0.014573,68647.0,68639.0,0.014574]
[1771688815488,0.014573,68647.0,68640.0,0.014574]
[1771688815788,0.014573,68646.0,68639.0,0.014574]
[1771688816086,0.014573,68645.0,68639.0,0.014574]
[1771688816390,0.014573,68645.0,68638.0,0.014574]
[1771688817590,0.014572,68649.0,68642.0,0.014574]
[1771688818489,0.014572,68649.0,68642.0,0.029148]
[1771688818689,0.014572,68651.0,68642.0,0.029148]
[1771688818893,0.014572,68648.0,68641.0,0.014574]
[1771688819186,0.014572,68649.0,68641.0,0.014574]
[1771688819187,0.014573,68647.0,68641.0,0.014574]
[1771688820094,0.014572,68648.0,68641.0,0.014574]
[1771688820694,0.014572,68648.0,68642.0,0.014574]
[1771688821488,0.014572,68648.0,68641.0,0.014574]
[1771688822888,0.014572,68648.0,68641.0,0.029148]
[1771688823485,0.014572,68650.0,68641.0,0.029148]
[1771688823886,0.014572,68649.0,68641.0,0.029148]
[1771688824193,0.014572,68649.0,68619.0,0.42836317]
[1771688824194,0.014569,68663.0,68656.0,0.014571]
[1771688825196,0.014569,68662.0,68655.0,0.014571]
[1771688826194,0.01457,68661.0,68654.0,0.014571]
[1771688826794,0.01457,68659.0,68652.0,0.014571]
[1771688827093,0.01457,68659.0,68651.0,0.014572]
[1771688827893,0.01457,68658.0,68651.0,0.029144]
[1771688828390,0.01457,68658.0,68652.0,0.014572]
[1771688829899,0.014569,68662.0,68656.0,0.014571]
[1771688830400,0.014569,68662.0,68657.0,0.01457]
[1771688830899,0.014569,68664.0,68657.0,0.01457]
[1771688831097,0.014568,68667.0,68657.0,0.01457]
[1771688831396,0.014568,68667.0,68661.0,0.014569]
[1771688831990,0.014568,68669.0,68661.0,0.014569]
[1771688831991,0.014568,68668.0,68661.0,0.014569]
[1771688832196,0.014568,68667.0,68661.0,0.014569]
[1771688833394,0.05667317,68680.0,68661.0,0.014569]
[1771688833395,0.014567,68673.0,68665.0,0.014569]
[1771688833692,0.014568,68669.0,68663.0,0.014569]
[1771688833893,0.014568,68669.0,68662.0,0.014569]
[1771688834491,0.014568,68669.0,68663.0,0.014569]
[1771688834692,0.014566,68679.0,68665.0,0.001]
[1771688834999,0.014567,68672.0,68666.0,0.014569]
[1771688836490,0.014567,68674.0,68667.0,0.014568]
[1771688836698,0.01456,68705.0,68687.0,0.2428405]
[1771688837002,0.01456,68706.0,68698.0,0.014562]
[1771688837595,0.01456,68708.0,68700.0,0.014561]
[1771688837898,0.01456,68706.0,68697.0,0.014562]
[1771688838291,0.01456,68705.0,68697.0,0.014562]
[1771688838697,0.01456,68708.0,68697.0,0.014562]
[1771688838898,0.01456,68705.0,68697.0,0.014562]
[1771688839494,0.01456,68707.0,68698.0,0.014562]
[1771688839797,0.01456,68706.0,68698.0,0.014562]
[1771688840103,0.01456,68708.0,68699.0,0.014562]
[1771688840600,0.01456,68707.0,68699.0,0.014562]
[1771688841300,0.06785169,68720.0,68697.0,0.014562]
[1771688841301,0.014557,68720.0,68697.0,0.2282765]
[1771688841499,0.014559,68712.0,68703.0,0.014561]
[1771688842297,0.014558,68714.0,68703.0,0.014561]
[1771688842298,0.014559,68711.0,68703.0,0.014561]
[1771688842494,0.01456,68709.0,68700.0,0.014561]
[1771688842699,0.01456,68709.0,68701.0,0.014561]
[1771688843100,0.001,68708.0,68701.0,0.014561]
[1771688843401,0.001,68708.0,68703.0,0.014561]
[1771688843605,0.001,68708.0,68703.0,0.001]
[1771688843794,0.014559,68711.0,68703.0,0.015561]
[1771688844404,0.014559,68711.0,68703.0,0.014561]
[1771688844597,0.014559,68710.0,68700.0,0.014561]
[1771688844902,0.001,68708.0,68702.0,0.014561]
[1771688845298,0.001,68708.0,68703.0,0.014561]
[1771688845503,0.001,68708.0,68704.0,0.01456]
[1771688846202,0.001,68708.0,68703.0,0.014561]
[1771688846404,0.014559,68711.0,68703.0,0.014561]
[1771688846996,0.014559,68710.0,68703.0,0.014561]
[1771688847505,0.014559,68710.0,68701.0,0.014561]
[1771688847506,0.014556,68726.0,68708.0,0.01456]
[1771688847706,0.014559,68711.0,68700.0,0.014561]
[1771688847893,0.014559,68710.0,68702.0,0.014561]
[1771688848100,0.014559,68710.0,68703.0,0.014561]
[1771688848404,0.014558,68715.0,68704.0,0.01456]
[1771688848707,0.014559,68712.0,68704.0,0.01456]
[1771688848894,0.014559,68712.0,68700.0,0.014561]
[1771688848895,0.014559,68712.0,68702.0,0.014561]
[1771688849207,0.014559,68711.0,68703.0,0.014561]
[1771688849405,0.014559,68710.0,68703.0,0.014561]
[1771688849719,0.014559,68712.0,68704.0,0.01456]
[1771688850206,0.014559,68710.0,68702.0,0.014561]
[1771688850605,0.014559,68710.0,68701.0,0.014561]
[1771688850606,0.014559,68711.0,68703.0,0.014561]
[1771688850804,0.014559,68711.0,68701.0,0.014561]
[1771688850805,0.014559,68711.0,68704.0,0.014561]
[1771688851810,0.014559,68710.0,68702.0,0.014561]
[1771688852009,0.014559,68709.0,68702.0,0.014561]
[1771688852309,0.014559,68709.0,68703.0,0.014561]
[1771688852511,0.01456,68708.0,68702.0,0.014561]
[1771688853505,0.01456,68707.0,68700.0,0.014561]
[1771688853709,0.01456,68707.0,68701.0,0.014561]
[1771688854106,0.19798164,68717.0,68692.0,0.2282765]
[1771688854405,0.014562,68699.0,68693.0,0.014563]